[Event "CZE-ch Youth G10-G12-G14 2022"]
[Site "Luhacovice"]
[Date "2022.03.19"]
[Round "9.40"]
[White "Dufkova, Tereza"]
[Black "Lackova, Ludmila"]
[Result "0-1"]
[ECO "C50"]
[WhiteElo "1014"]
[BlackElo "1167"]
[Annotator "NA"]
[PlyCount "80"]
[EventDate "2022.03.12"]
[EventType "swiss"]
[EventCountry "CZE"]
[SourceTitle "playchess.com"]
[Source "ChessBase"]
[SourceQuality "1"]
[TimeControl "40/5400+30:1800+30"]

1. e4 {[%emt 0:00:06]} e5 {[%emt 0:00:05]} 2. Bc4 {[%emt 0:00:21]} Nf6 {[%emt 0:00:31]} 3. Nf3 {[%emt 0:00:13]} Nc6 {[%emt 0:01:04]} 4. Nc3 {[%emt 0:00:09]} Bc5 {[%emt 0:00:13]} 5. O-O {[%emt 0:00:13]} d6 {[%emt 0:00:20]} 6. h3 {[%emt 0:00:07]} Be6 {[%emt 0:05:58]} 7. Bb3 {[%emt 0:00:15]} Nd4 {[%emt 0:01:56]} 8. d3 {[%emt 0:01:10]} a6 {[%emt 0:05:37]} 9. Be3 {[%emt 0:00:48]} Nxb3 {[%emt 0:14:52]} 10. axb3 {[%emt 0:00:19]} Ba7 {[%emt 0:02:15]} 11. d4 {[%emt 0:00:53]} exd4 {[%emt 0:02:26]} 12. Nxd4 {[%emt 0:00:19]} Qd7 {[%emt 0:01:43]} 13. b4 {[%emt 0:07:44]} c6 {[%emt 0:03:30]} 14. Qf3 {[%emt 0:03:51]} O-O {[%emt 0:06:41]} 15. Nf5 {[%emt 0:00:27]} Bxf5 {[%emt 0:01:32]} 16. exf5 {[%emt 0:00:37]} d5 {[%emt 0:02:59]} 17. Bg5 {[%emt 0:01:51]} Qd6 {[%emt 0:01:23]} 18. Ra4 {[%emt 0:01:57]} Bb8 {[%emt 0:06:32]} 19. g3 {[%emt 0:00:46]} b5 {[%emt 0:01:07]} 20. Raa1 {[%emt 0:03:01]} h6 {[%emt 0:01:59]} 21. Bxf6 {[%emt 0:00:44]} Qxf6 {[%emt 0:00:41]} 22. h4 {[%emt 0:08:39]} Re8 {[%emt 0:02:10]} 23. Rfe1 {[%emt 0:02:31]} Rxe1+ {[%emt 0:02:46]} 24. Rxe1 {[%emt 0:00:07]} Bd6 {[%emt 0:00:22]} 25. Qh5 {[%emt 0:02:40]} Bxb4 {[%emt 0:02:00]} 26. g4 {[%emt 0:02:23]} Bxc3 {[%emt 0:00:59]} 27. bxc3 {[%emt 0:01:10]} Qxc3 {[%emt 0:01:56]} 28. Re7 {[%emt 0:01:01]} Qf6 {[%emt 0:00:25]} 29. Rb7 {[%emt 0:01:47]} a5 {[%emt 0:01:14]} 30. g5 {[%emt 0:00:28]} hxg5 {[%emt 0:00:24]} 31. hxg5 {[%emt 0:00:17]} Qxf5 {[%emt 0:00:18]} 32. Re7 {[%emt 0:03:26]} Qg6 {[%emt 0:01:18]} 33. Qg4 {[%emt 0:07:08]} Qxc2 {[%emt 0:01:43]} 34. Qf4 {[%emt 0:00:44]} Qg6 {[%emt 0:01:40]} 35. Rc7 {[%emt 0:00:52]} Qe6 {[%emt 0:01:25]} 36. Qc1 {[%emt 0:02:16]} Rc8 {[%emt 0:00:30]} 37. Ra7 {[%emt 0:00:34]} a4 {[%emt 0:00:12]} 38. Qf4 {[%emt 0:00:44]} Qe1+ {[%emt 0:02:54]} 39. Kg2 {[%emt 0:00:40]} Qe4+ {[%emt 0:00:20]} 40. Kg3 {[%emt 0:02:27]} Qxf4+ {[%emt 0:00:09]} 0-1

[Event "CZE-ch Youth G10-G12-G14 2022"]
[Site "Luhacovice"]
[Date "2022.03.19"]
[Round "9.41"]
[White "Filipova, Vanesa"]
[Black "Zilava Lucie"]
[Result "1/2-1/2"]
[ECO "D02"]
[WhiteElo "1146"]
[BlackElo "1059"]
[Annotator "NA"]
[PlyCount "64"]
[EventDate "2022.03.12"]
[EventType "swiss"]
[EventCountry "CZE"]
[SourceTitle "playchess.com"]
[Source "ChessBase"]
[SourceQuality "1"]
[TimeControl "40/5400+30:1800+30"]

1. d4 {[%emt 0:00:08]} d5 {[%emt 0:00:17]} 2. Bf4 {[%emt 0:00:19]} Bf5 {[%emt 0:00:10]} 3. e3 {[%emt 0:00:26]} e6 {[%emt 0:00:06]} 4. Nf3 {[%emt 0:00:24]} Nf6 {[%emt 0:00:36]} 5. c3 {[%emt 0:00:29]} Nc6 {[%emt 0:00:25]} 6. Nbd2 {[%emt 0:01:06]} Bd6 {[%emt 0:00:50]} 7. Bg3 {[%emt 0:00:52]} Bxg3 {[%emt 0:00:32]} 8. hxg3 {[%emt 0:00:21]} Qd7 {[%emt 0:00:14]} 9. Bb5 {[%emt 0:00:43]} Qd6 {[%emt 0:00:32]} 10. Ne5 {[%emt 0:02:08]} a6 {[%emt 0:01:03]} 11. Qa4 {[%emt 0:00:47]} O-O {[%emt 0:01:34]} 12. Bxc6 {[%emt 0:01:20]} bxc6 {[%emt 0:00:14]} 13. Qxc6 {[%emt 0:13:57]} Qxc6 {[%emt 0:02:41]} 14. Nxc6 {[%emt 0:00:10]} Rfe8 {[%emt 0:00:29]} 15. Nf3 {[%emt 0:05:04]} Nd7 {[%emt 0:03:40]} 16. Kd2 {[%emt 0:06:58]} a5 {[%emt 0:00:56]} 17. Nce5 {[%emt 0:02:52]} Nxe5 {[%emt 0:00:37]} 18. Nxe5 {[%emt 0:00:42]} f6 {[%emt 0:03:29]} 19. Nf3 {[%emt 0:01:15]} e5 {[%emt 0:03:10]} 20. g4 {[%emt 0:03:02]} Bxg4 {[%emt 0:01:39]} 21. Rh4 {[%emt 0:00:37]} Bf5 {[%emt 0:00:44]} 22. dxe5 {[%emt 0:04:31]} fxe5 {[%emt 0:00:35]} 23. Rah1 {[%emt 0:01:15]} Re7 {[%emt 0:00:42]} 24. Rh5 {[%emt 0:05:42]} g6 {[%emt 0:00:14]} 25. Rh6 {[%emt 0:01:18]} c5 {[%emt 0:01:03]} 26. Ng5 {[%emt 0:01:09]} Raa7 {[%emt 0:00:19]} 27. R6h4 {[%emt 0:01:36]} Rad7 {[%emt 0:01:04]} 28. Ke2 {[%emt 0:01:44]} d4 {[%emt 0:00:59]} 29. Rd1 {[%emt 0:02:53]} d3+ {[%emt 0:01:35]} 30. Ke1 {[%emt 0:00:45]} d2+ {[%emt 0:00:18]} 31. Rxd2 {[%emt 0:00:09]} Rxd2 {[%emt 0:00:12]} 32. Kxd2 {[%emt 0:00:04]} Rd7+ {[%emt 0:00:08]} 1/2-1/2

[Event "CZE-ch Youth G10-G12-G14 2022"]
[Site "Luhacovice"]
[Date "2022.03.19"]
[Round "9.42"]
[White "Urvalkova Ema"]
[Black "Koval, Anna"]
[Result "0-1"]
[ECO "C44"]
[WhiteElo "1000"]
[BlackElo "1278"]
[Annotator "NA"]
[PlyCount "102"]
[EventDate "2022.03.12"]
[EventType "swiss"]
[EventCountry "CZE"]
[SourceTitle "playchess.com"]
[Source "ChessBase"]
[SourceQuality "1"]
[TimeControl "40/5400+30:1800+30"]

1. e4 {[%emt 0:00:02]} e5 {[%emt 0:00:01]} 2. Nf3 {[%emt 0:00:24]} Nc6 {[%emt 0:00:07]} 3. d4 {[%emt 0:00:22]} exd4 {[%emt 0:00:14]} 4. Bc4 {[%emt 0:00:16]} Bc5 {[%emt 0:00:42]} 5. c3 {[%emt 0:00:23]} dxc3 {[%emt 0:00:24]} 6. Bxf7+ {[%emt 0:00:21]} Kxf7 {[%emt 0:01:02]} 7. Qd5+ {[%emt 0:00:27]} Ke8 {[%emt 0:00:08]} 8. Qh5+ {[%emt 0:00:12]} Kf8 {[%emt 0:00:36]} 9. Qxc5+ {[%emt 0:00:25]} d6 {[%emt 0:01:31]} 10. Qxc3 {[%emt 0:00:20]} Nf6 {[%emt 0:00:33]} 11. Qc4 {[%emt 0:00:39]} Qe8 {[%emt 0:01:31]} 12. Nbd2 {[%emt 0:00:19]} Be6 {[%emt 0:00:46]} 13. Qa4 {[%emt 0:02:10]} Bd5 {[%emt 0:01:15]} 14. O-O {[%emt 0:02:53]} Be6 {[%emt 0:02:35]} 15. b3 {[%emt 0:02:11]} Qg6 {[%emt 0:00:52]} 16. h3 {[%emt 0:01:59]} Bxh3 {[%emt 0:00:10]} 17. Nh4 {[%emt 0:02:16]} Qg4 {[%emt 0:01:22]} 18. e5 {[%emt 0:04:32]} Nxe5 {[%emt 0:00:33]} 19. Qxg4 {[%emt 0:00:16]} Bxg4 {[%emt 0:00:03]} 20. Ba3 {[%emt 0:01:09]} g5 {[%emt 0:00:27]} 21. Nhf3 {[%emt 0:01:12]} Nxf3+ {[%emt 0:00:02]} 22. Nxf3 {[%emt 0:00:20]} h6 {[%emt 0:00:22]} 23. Rfe1 {[%emt 0:02:07]} Re8 {[%emt 0:00:18]} 24. Rxe8+ {[%emt 0:00:47]} Kxe8 {[%emt 0:00:33]} 25. Re1+ {[%emt 0:00:35]} Kd7 {[%emt 0:00:20]} 26. Rd1 {[%emt 0:02:04]} Ne4 {[%emt 0:00:37]} 27. Ne5+ {[%emt 0:00:51]} Kc8 {[%emt 0:00:24]} 28. Nxg4 {[%emt 0:00:19]} Nc3 {[%emt 0:00:07]} 29. Bb2 {[%emt 0:01:44]} Nxd1 {[%emt 0:00:46]} 30. Bxh8 {[%emt 0:00:14]} b5 {[%emt 0:00:08]} 31. Ne3 {[%emt 0:01:04]} Nxe3 {[%emt 0:00:25]} 32. fxe3 {[%emt 0:00:16]} c5 {[%emt 0:00:03]} 33. Bg7 {[%emt 0:02:44]} h5 {[%emt 0:00:13]} 34. e4 {[%emt 0:01:43]} a5 {[%emt 0:00:25]} 35. Bf8 {[%emt 0:00:59]} Kc7 {[%emt 0:00:11]} 36. Kh2 {[%emt 0:08:00]} c4 {[%emt 0:01:00]} 37. bxc4 {[%emt 0:01:23]} bxc4 {[%emt 0:00:09]} 38. Bg7 {[%emt 0:01:25]} Kc6 {[%emt 0:00:16]} 39. Bc3 {[%emt 0:02:08]} Kb5 {[%emt 0:00:18]} 40. Kg3 {[%emt 0:01:19]} Ka4 {[%emt 0:00:38]} 41. Kf3 {[%emt 0:31:14]} Ka3 {[%emt 0:30:26]} 42. Bxa5 {[%emt 0:00:35]} Kxa2 {[%emt 0:00:03]} 43. Ke2 {[%emt 0:01:38]} Kb3 {[%emt 0:00:11]} 44. Kd1 {[%emt 0:00:33]} c3 {[%emt 0:00:09]} 45. Bc7 {[%emt 0:01:57]} Kb2 {[%emt 0:00:16]} 46. Bxd6 {[%emt 0:01:19]} c2+ {[%emt 0:00:13]} 47. Ke2 {[%emt 0:00:11]} c1=Q {[%emt 0:00:19]} 48. e5 {[%emt 0:00:54]} Qc4+ {[%emt 0:00:18]} 49. Ke3 {[%emt 0:00:38]} Kc2 {[%emt 0:00:31]} 50. Be7 {[%emt 0:00:50]} Qf4+ {[%emt 0:00:50]} 51. Ke2 {[%emt 0:00:22]} Qxe5+ {[%emt 0:00:17]} 0-1